Cogmind - Beta 12 @@@ ROGUE MODE // 2023.07.13 @ 17:33:29 Player: ZLD1 Result: Self-destructed Performance ------------- Evolutions (1) 500 Regions Visited (3) 600 Robots Destroyed (11) 55 Value Destroyed (262) 262 Prototype IDs (0) 0 Alien Tech Used (0) 0 Bonus (0) 0 TOTAL SCORE: 1417 Bonus ------- None Cogmind --------- Core Integrity 300/400 Matter 276/300 Energy 100/100 System Corruption 0% Temperature Cool (0) Movement Walking (120) Location -9/Materials Parts ------- > --- POWER (1) -------- (None) > --- PROPULSION (2) --- Improved Aluminum Leg > --- UTILITY (4) ------ Sensor Array > --- WEAPON (2) ------- Autogun > --- INVENTORY (5) ---- Improved Aluminum Leg Sensor Array Utility Shielding Mini Grenade Launcher Katana Peak State ------------ > --- POWER ------------ Ion Engine > --- PROPULSION ------- Improved Aluminum Leg Improved Aluminum Leg > --- UTILITY ---------- Improved Terrain Scanner > --- WEAPON ----------- Autogun Autogun > --- INVENTORY -------- Ion Engine Light Ion Engine [Rating: 12] Favorites ----------- Power Ion Engine Engine Ion Engine Propulsion Flight Unit Leg Improved Aluminum Leg Flight Unit Flight Unit Utility Improved Terrain Scanner Device Improved Terrain Scanner Weapon Autogun Ballistic Gun Autogun Build | -11 -10 -10 -9 ------- Run | Jun Mat Min Mat Slots Evolved 2 | . . . 2 Power . | . . . . Propulsion . | . . . . Utility 2 | . . . 2 Weapon . | . . . . Parts Attached 18 | 6 4 5 3 Power 2 | 1 . 1 . Engine 2 | 1 . 1 . Core . | . . . . Reactor . | . . . . Propulsion 7 | 2 2 2 1 Treads . | . . . . Leg 5 | 2 2 . 1 Wheel . | . . . . Hover . | . . . . Flight 2 | . . 2 . Utility 3 | 1 . 1 1 Device 3 | 1 . 1 1 Storage . | . . . . Processor . | . . . . Hackware . | . . . . Protection . | . . . . Artifact . | . . . . Weapon 6 | 2 2 1 1 Energy Gun . | . . . . Energy Cannon . | . . . . Ballistic Gun 6 | 2 2 1 1 Ballistic Cannon . | . . . . Launcher . | . . . . Special Weapon . | . . . . Impact Weapon . | . . . . Slashing Weapon . | . . . . Piercing Weapon . | . . . . Special Melee Weapon . | . . . . Unidentified Prototypes . | . . . . Parts Lost 6 | . . 2 4 Power 1 | . . 1 . Propulsion 2 | . . . 2 Utility 2 | . . 1 1 Weapon 1 | . . . 1 Highest Loss Streak 2 | . . 2 2 To Critical Strikes . | . . . . Average Slot Usage (%) 69 | . 85 84 45 Engine 7 | . 14 12 . Leg 12 | . 28 11 4 Flight 10 | . . 16 12 Device 16 | . 14 19 13 Ballistic Gun 21 | . 28 23 15 Naked Turns . | . . . . Heaviest Build 12 | 9 12 12 7 Greatest Support 26 | 20 26 26 13 Greatest Overweight (x) 1 | . . . 1 Average Overweight (x) . | . . . . Largest Inventory Capacity 5 | 5 5 5 5 Average Capacity 5 | 5 5 5 5 Most Carried 5 | 3 5 5 5 Average Carried 3 | 1 3 4 4 Final Capacity 5 | 5 5 5 5 Final Carried 5 | 2 5 3 5 Class Distribution -------------------- 82% | Mutant 17% | Scavenger-Mutant Dominant Class ---------------- Mutant | -10/Materials Scavenger-Mutant | -10/Mines Mutant | -9/Materials Resources | -11 -10 -10 -9 ----------- Run | Jun Mat Min Mat Matter Collected 602 | 266 18 212 106 Remotely . | . . . . Salvage Created 505 | 109 18 222 156 Parts 25 | 5 3 7 10 Haulers Intercepted . | . . . . Recyclers Shooed . | . . . . Parts Field Recycled . | . . . . Retrieved Matter . | . . . . Parts Self-Destructed . | . . . . Prevented . | . . . . Kills | -11 -10 -10 -9 ------- Run | Jun Mat Min Mat Combat Hostiles Destroyed 7 | . . 4 3 Guns 7 | . . 4 3 Classes Destroyed 7 | 2 1 2 2 Tunneler 1 | 1 . . . Recycler 2 | 1 . 1 . Watcher 1 | . 1 . . Swarmer 2 | . . 2 . Grunt 3 | . . 2 1 Duelist 1 | . . . 1 Sentry 1 | . . . 1 Best Kill Streak 3 | 2 1 3 2 Combat Bots Only 2 | . . 2 2 Max Kills in Single Turn 1 | 1 1 1 1 Gunslinging . | . . . . Exploded . | . . . . Melee . | . . . . Uniques/NPCs Destroyed . | . . . . Combat | -11 -10 -10 -9 -------- Run | Jun Mat Min Mat Damage Taken 633 | . . 247 386 Core 149 | . . 49 100 Absorbed by Shields . | . . . . Core Remaining (%) 90 | 100 . 80 . Volleys Fired 45 | 4 1 25 15 Largest 2 | 2 2 2 2 Hottest 46 | 40 46 46 46 Shots Fired 73 | 8 2 43 20 Gun 73 | 8 2 43 20 Cannon . | . . . . Launcher . | . . . . Special . | . . . . Kinetic 73 | 8 2 43 20 Thermal . | . . . . Explosive . | . . . . Electromagnetic . | . . . . Robot Hit Streak 9 | 4 1 5 9 Robot Miss Streak 5 | 1 1 5 1 Penetration Max . | . . . . Secondary Targets . | . . . . Shots Hit Robots 46 | 7 1 21 17 Core Hits 19 | 3 1 8 7 Critical Kills . | . . . . Critical Parts Destroyed . | . . . . Critical Strikes . | . . . . Melee Attacks . | . . . . Impact . | . . . . Slashing . | . . . . Piercing . | . . . . Sneak Attacks . | . . . . Combat Hostiles . | . . . . Follow-up Attacks . | . . . . Damage Inflicted 643 | 72 14 307 250 Guns 643 | 72 14 307 250 Cannons . | . . . . Explosions . | . . . . Melee . | . . . . Ramming . | . . . . Kinetic 643 | 72 14 307 250 Thermal . | . . . . Explosive . | . . . . Electromagnetic . | . . . . Impact . | . . . . Slashing . | . . . . Piercing . | . . . . Highest Corruption . | . . . . Average Corruption . | . . . . Corruption Purged . | . . . . Corruption Blocked . | . . . . Overload Shots . | . . . . Overflow Damage . | . . . . Projectiles . | . . . . Explosions . | . . . . Melee . | . . . . Knockbacks . | . . . . Impact . | . . . . Kinetic . | . . . . Secondary . | . . . . Self-Inflicted Damage . | . . . . Shots . | . . . . Rammed . | . . . . Targets Rammed . | . . . . Kicked . | . . . . Crushed . | . . . . Highest Temperature 83 | . 6 83 3 Average Temperature 22 | . 4 25 2 Received Heat Transfer 216 | . . 105 111 Siege Activations . | . . . . Robots Corrupted . | . . . . Combat Hostiles . | . . . . Parts Fried . | . . . . Impact Corruptions . | . . . . Robots Melted . | . . . . Combat Hostiles . | . . . . Parts Melted . | . . . . Heat Transferred . | . . . . Parts Sabotaged . | . . . . Parts Stolen . | . . . . Parts Stripped . | . . . . Power Chain Reactions . | . . . . Missiles Intercepted . | . . . . Alert | -11 -10 -10 -9 ------- Run | Jun Mat Min Mat Peak Influence 149 | 10 28 125 149 Initial 48 | . 6 10 48 Average 59 | 3 14 60 106 Maximum Alert Level . | . . . . Low Security (%) 100 | 100 100 100 100 Level 1 . | . . . . Level 2 . | . . . . Level 3 . | . . . . Level 4 . | . . . . Level 5 . | . . . . High Security . | . . . . Max Security . | . . . . Squads Dispatched 1 | . . . 1 Investigation . | . . . . Extermination . | . . . . Reinforcement 1 | . . . 1 Assault . | . . . . Garrison . | . . . . Intercept . | . . . . Searches Triggered . | . . . . Construction Impeded . | . . . . Haulers Reinforced . | . . . . Active Scanning Responses . | . . . . Cargo Convoy Interrupts . | . . . . Stealth | -11 -10 -10 -9 --------- Run | Jun Mat Min Mat Distress Signals 2 | . 1 . 1 Communications Jammed . | . . . . Distress Signals . | . . . . Times Spotted 19 | . 3 6 10 Peak Tracking Total 4 | . 4 3 4 Tactical Retreats 2 | . . 2 . Traps | -11 -10 -10 -9 ------- Run | Jun Mat Min Mat Traps Triggered . | . . . . Indirectly . | . . . . Trap Hack Attempts . | . . . . Triggered . | . . . . Disarmed . | . . . . Reprogrammed . | . . . . Reused . | . . . . Traps Extracted . | . . . . Installed . | . . . . Triggered . | . . . . Machines | -11 -10 -10 -9 ---------- Run | Jun Mat Min Mat Machines Disabled . | . . . . Max in Single Turn . | . . . . Machines Repaired . | . . . . Machines Sabotaged . | . . . . Overloaded Fab Kills . | . . . . Hacking | -11 -10 -10 -9 --------- Run | Jun Mat Min Mat Machines Accessed . | . . . . Terminals . | . . . . Fabricators . | . . . . Repair Stations . | . . . . Recycling Units . | . . . . Scanalyzers . | . . . . Garrison Access . | . . . . Total Hacks . | . . . . Successful . | . . . . Failed . | . . . . Catastrophic . | . . . . Database Lockouts . | . . . . Manual . | . . . . Terminals . | . . . . Fabricators . | . . . . Repair Stations . | . . . . Recycling Units . | . . . . Scanalyzers . | . . . . Garrison Access . | . . . . Terminal Hacks . | . . . . Fabricator Hacks . | . . . . Repair Station Hacks . | . . . . Recycling Unit Hacks . | . . . . Scanalyzer . | . . . . Garrison Access Hacks . | . . . . Unauthorized Hacks . | . . . . Terminals . | . . . . Fabricators . | . . . . Repair Stations . | . . . . Recycling Units . | . . . . Scanalyzers . | . . . . Garrison Access . | . . . . Data Cores Recovered . | . . . . Used . | . . . . Hacking Detections . | . . . . Full Trace Events . | . . . . Feedback Events . | . . . . Feedback Blocked . | . . . . Robot Schematics Acquired . | . . . . Robots Built . | . . . . Authchips . | . . . . Time . | . . . . Total Robot Build Rating . | . . . . Part Schematics Acquired . | . . . . Parts Built . | . . . . Authchips . | . . . . Time . | . . . . Total Part Build Rating . | . . . . Parts Repaired . | . . . . Time . | . . . . Parts Recycled . | . . . . Recycled Matter . | . . . . Retrieved Matter . | . . . . Retrieved Components . | . . . . Parts Scanalyzed . | . . . . Part Schematics Acquired . | . . . . Parts Damaged . | . . . . Bothacking | -11 -10 -10 -9 ------------ Run | Jun Mat Min Mat Used RIF Installer . | . . . . Robots Hacked . | . . . . Non-combat . | . . . . Combat . | . . . . Robot Hacks Applied . | . . . . Relay Couplers Released . | . . . . Fabnet Peak Effective % . | . . . . Robots Rewired . | . . . . Allies Hacked . | . . . . Hacks Repelled . | . . . . Allies | -11 -10 -10 -9 -------- Run | Jun Mat Min Mat Total Allies . | . . . . Largest Group . | . . . . Highest-Rated Group . | . . . . Highest-Rated Ally . | . . . . Total Orders . | . . . . Ally Attacks . | . . . . Total Damage . | . . . . Kills . | . . . . Allies Corrupted . | . . . . Allies Melted . | . . . . Intel | -11 -10 -10 -9 ------- Run | Jun Mat Min Mat Robot Analysis Total . | . . . . Derelict Logs Recovered . | . . . . Drone Launches . | . . . . Drone Recoveries . | . . . . Exploration | -11 -10 -10 -9 ------------- Run | Jun Mat Min Mat Turns Passed 554 | 75 118 166 195 Spaces Moved 509 | 54 85 170 200 Core 21 | 21 . . . Treads . | . . . . Legs 217 | 33 85 34 65 Wheels . | . . . . Hover . | . . . . Flight 271 | . . 136 135 Fastest Speed 37 | 50 120 37 37 Average Speed 73 | 92 120 53 66 Slowest Speed 120 | 120 120 120 120 Overloaded Moves . | . . . . Propulsion Burnouts . | . . . . Robots Hopped 3 | . . 1 2 Cave-ins Triggered . | . . . . Exploration Rate (%) 21 | 4 21 40 21 Regions Visited 3 Branch Regions 1 Pre-discovered Areas . | . . . . Known Exits Taken . | . . . . Unknown Exits Taken 3 | 1 1 1 . Scrap Searched . | . . . . Spaces Dug . | . . . . Terrain Destroyed . | . . . . Melee . | . . . . Projectile . | . . . . AOE . | . . . . Terrain Rammed . | . . . . Walls Destroyed . | . . . . Machines Disabled . | . . . . Actions | -11 -10 -10 -9 --------- Run | Jun Mat Min Mat Total 624 | 71 100 209 244 Wait 28 | . . 5 23 Move 500 | 53 84 167 196 Hop 3 | . . 1 2 Pick Up 21 | 8 7 2 4 Fast Attach 1 | . . . 1 Attach 12 | 6 2 2 2 Detach 1 | . . 1 . Swap 5 | . 2 3 . Drop 8 | . 4 3 1 Fire 45 | 4 1 25 15 Melee . | . . . . Ram . | . . . . Kick . | . . . . Crush . | . . . . Escape Stasis . | . . . . Rewire . | . . . . Trap . | . . . . Miscellaneous . | . . . . Route ------- -11/Junkyard -10/Materials -10/Mines -9/Materials (discovered 1 exit: [*Min]) History --------- Turn | Location | Event 2 | -11/Junkyard | Discovered new exit (range 16) 76 | -11/Junkyard | Entered Materials 159 | -10/Materials | Discovered new exit (range 14) 194 | -10/Materials | Entered Mines 357 | -10/Mines | Discovered new exit (range 5) 360 | -10/Mines | Entered Materials 360 | -9/Materials | Evolved 2 slots: Utility x2 536 | -9/Materials | Discovered new exit (range 16) 555 | -9/Materials | Self-destructed Last Messages --------------- 00404_ K-01 Serf collects debris. 00404_ Acquired 56 matter. 00434_ Autogun destroyed. 00436_ Flight Unit destroyed. 00437_ L-31 Rogue destroyed. 00439_ Acquired 22 matter. 00450_ G-34 Mercenary destroyed. 00452_ Acquired 28 matter. 00453_ Acquired Katana. 00464_ Acquired Sensor Array. 00469_ K-01 Serf collects debris. 00471_ Dropped Autogun. 00471_ Acquired Mni. Grenade Launcher. 00474_ K-01 Serf collects debris. 00477_ Acquired Sensor Array. 00486_ K-01 Serf collects debris. 00502_ Flight Unit destroyed. 00517_ Imp. Terrain Scanner destroyed. 00520_ G-34 Mercenary destroyed. 00536_ EXIT=FOUND Map ----- +----------------------------------------------------+ | ?????????????????????????# #????????# | | ?????????????????????????# #????????# #######/ | | ?????????????????????????# #??????? ??# #??????# | | ?????????????????????????# #????????#?# #??????# | | ??????????????????????#### ##???????### ###?#??# | | ??????????????????????# #???????# ###### | | ??????????????????????# ######### # | | ??????????????????????# %= + | | ??????????????????????# ######### [ # | | ??????????????????????# #?#?????# ##+### | | ??????????????????????## Y##???????###+### ## | | ???????????????????????# Y#????????? # [ ## | | ???????????????????????# u#???????# "" # ## | | ?????????????#?????????# #??###### "T # " #### | | ?????????????# ####### #? ## "" # T #??# | | ?????????????# # ?## # " #### | | ?????????????# # ????# # #??? | | ?????????????# + ??????############?## | | ?????????????###+####+## #??????????????#??????? | | ???????????????????????# #?????????????????????? | | ???????????????????????# #??????????????#?????## | | ???????????????????????# u #???????????#????????# | | ???????????????????????# #???????????????#????# | | ???????????????????????# #?????????????????#??# | | ????????????????????#### ##???????????????????# | | ????????????????????#""" @ #???????????????????# | | ????????????????????#" #???????????????????# | | ????????????????????#"! #???????????????????## | | ????????????????????#"" < #????????????????????? | | ????????????????????#"! #????????????????????? | | ????????????????????#" #????????????????????? | | ????????????????????#""" #????????????????????? | | ????????????????????#### w##????????????????????? | | ???????????????????????# #?????????????????????? | | ??????????????????????? +?????????????????????? | | ??????????????????????? #?????????????????????? | | ??????????????????????? #????????????????????#? | | ???????????????????????# #?????????????????????? | | ???????????????????????? ??????????????????????? | | ???????????????????????? u ??????????????????????? | | ???????????????????????? ??????????????????????? | | ?????????????????????????????????????????????????? | | ?????????????????????????????????????????????????? | | ?????????????????????????????????????????????????? | | ?????????????????????????????????????????????????? | | ?????????????????????????????????????????????????? | | ?????????????????????????????????????????????????? | | ?????????????????????????????????????????????????? | | ?????????????????????????????????????????????????? | | ?????????????????????????????????????????????????? | +----------------------------------------------------+ Best States ------------- Heat Dissipation 28 Energy Generation 10 Energy Capacity 250 Matter Stores 300 Matter Capacity 300 Sight Range 16 Robot Scan Range 14 Terrain Scan Range 16 Terrain Scan Density 10 Evasion (%) 62 Item Schematics ----------------- None Robot Schematics ------------------ None Fabricated ------------ Nothing Alien Tech Used ----------------- None Achievements -------------- None Challenges ------------ None Game ------ Seed TachyonMachineWell Manual? 0 Play Time 00:09:00 Cumulative 51.0 hours Start 2023.07.13 @ 17:20:28 End 2023.07.13 @ 17:33:29 Sessions 1 Manual Loads 0 Difficulty Rogue Special Mode None Game No. 111 Rogue 111 Adventurer 0 Explorer 0 Win Type - Total 0 Types 0/0/0/0/0/0/0/0/0 Lore% 26 Gallery% 42 Achievement% 31 Wizard Run 0 Options --------- ASCII 0 Keyboard 0 Movement Mouse Keybinds 0 Fullscreen 1 Font 24/Smallcaps Map View 64x52 Tactical HUD 1 Map Filters NONE Filters NONE Steam 1 RUN: e24b7c10-b9f4-449e-9745-9efba947104c